bitfinex/quotes_BTCUSD_20241101
["timestamp","ask_amount","ask_price","bid_price","bid_amount"]
[1730465717188,0.02529324,70344.0,70343.0,0.47852336]
[1730465718679,0.01429324,70344.0,70343.0,0.47852336]
[1730465718904,0.01429324,70344.0,70343.0,0.47952336]
[1730465719746,0.01429324,70344.0,70343.0,0.61797861]
[1730465719961,0.001,70344.0,70343.0,0.61797861]
[1730465720224,0.21593124,70355.0,70354.0,0.315838]
[1730465720225,0.001644,70355.0,70354.0,0.315838]
[1730465720455,0.001644,70355.0,70354.0,0.47865536]
[1730465721412,0.002644,70355.0,70354.0,0.48165536]
[1730465721843,0.001644,70355.0,70354.0,0.47865536]
[1730465722287,0.003644,70355.0,70354.0,0.48465536]
[1730465722506,0.002644,70355.0,70354.0,0.48165536]
[1730465722754,0.001644,70355.0,70354.0,0.47865536]
[1730465723175,0.002644,70355.0,70354.0,0.48165536]
[1730465723881,0.003644,70355.0,70354.0,0.48365536]
[1730465724322,0.003644,70355.0,70354.0,0.62211061]
[1730465724561,0.002644,70355.0,70354.0,0.61911061]
[1730465725004,0.003644,70355.0,70354.0,0.62311061]
[1730465725219,0.002644,70355.0,70354.0,0.62111061]
[1730465725655,0.002644,70355.0,70354.0,0.61911061]
[1730465726095,0.003644,70355.0,70354.0,0.62311061]
[1730465726774,0.002644,70355.0,70354.0,0.62111061]
[1730465727203,0.003644,70355.0,70354.0,0.62311061]
[1730465729157,0.003644,70355.0,70354.0,0.48465536]
[1730465729575,0.003644,70355.0,70354.0,0.1797]
[1730465730483,0.002644,70355.0,70354.0,0.1777]
[1730465731318,0.1570284,70355.0,70354.0,0.002]
[1730465731742,0.1580284,70355.0,70354.0,0.005]
[1730465731962,0.1580284,70355.0,70354.0,0.01801377]
[1730465732180,0.1570284,70355.0,70354.0,0.002]
[1730465732387,0.1570284,70355.0,70354.0,0.01501377]
[1730465732602,0.24586538,70355.0,70354.0,0.005]
[1730465733026,0.142151,70348.0,70345.0,0.0773]
[1730465733243,0.0132484,70347.0,70345.0,0.0773]
[1730465733444,0.001644,70355.0,70345.0,0.0773]
[1730465733445,0.28429,70351.0,70345.0,0.0773]
[1730465733662,0.15540268,70350.0,70345.0,0.0773]
[1730465733862,0.01325668,70349.0,70345.0,0.0773]
[1730465734122,0.15540768,70348.0,70345.0,0.0773]
[1730465734379,0.284299,70349.0,70345.0,0.0773]
[1730465734591,0.01325851,70348.0,70345.0,0.0783]
[1730465734793,0.01325851,70347.0,70345.0,0.0783]
[1730465735003,0.01325851,70347.0,70345.0,0.0793]
[1730465735186,0.01325851,70346.0,70345.0,0.0793]
[1730465735400,0.01325851,70348.0,70345.0,0.0793]
[1730465735561,0.01325851,70347.0,70345.0,0.0793]
[1730465735770,0.01325851,70346.0,70345.0,0.0773]
[1730465735973,0.01325851,70348.0,70345.0,0.0793]
[1730465736130,0.01325851,70348.0,70345.0,0.0803]
[1730465736564,0.01325851,70348.0,70345.0,0.0793]
[1730465736767,0.01325851,70347.0,70345.0,0.0803]
[1730465737216,0.01325851,70347.0,70345.0,0.0793]
[1730465737352,0.01325851,70346.0,70345.0,0.0803]
[1730465737546,0.01325851,70348.0,70345.0,0.0783]
[1730465737803,0.01325851,70347.0,70345.0,0.0773]
[1730465738044,0.01325851,70346.0,70345.0,0.0803]
[1730465738188,0.01325851,70348.0,70345.0,0.0803]
[1730465738396,0.01325851,70347.0,70345.0,0.0803]
[1730465738622,0.01325851,70346.0,70345.0,0.0783]
[1730465738868,0.29386776,70346.0,70345.0,0.003]
[1730465739328,0.29386776,70346.0,70345.0,0.002]
[1730465739555,0.29386776,70346.0,70338.0,0.001646]
[1730465739556,0.142158,70344.0,70338.0,0.001646]
[1730465739787,0.29387176,70344.0,70338.0,0.001646]
[1730465740003,0.63022268,70344.0,70338.0,0.001646]
[1730465740211,0.55534906,70344.0,70338.0,0.001646]
[1730465740886,0.56934906,70344.0,70338.0,0.001646]
[1730465741319,0.55534906,70344.0,70338.0,0.001646]
[1730465741768,0.56934906,70344.0,70338.0,0.001646]
[1730465742235,0.66214906,70344.0,70338.0,0.001646]
[1730465742442,0.75603985,70344.0,70338.0,0.001646]
[1730465742647,0.70639086,70344.0,70338.0,0.001646]
[1730465742883,0.69239086,70344.0,70338.0,0.001646]
[1730465743091,0.84905032,70344.0,70338.0,0.001646]
[1730465743441,0.86304444,70344.0,70338.0,0.001646]
[1730465743644,0.96190976,70344.0,70338.0,0.001646]
[1730465744283,0.96192455,70344.0,70338.0,0.001646]
[1730465745113,1.33665252,70344.0,70343.0,1e-06]
[1730465745360,0.265168,70339.0,70338.0,0.001646]
[1730465745589,0.82607815,70339.0,70338.0,0.001646]
[1730465746225,0.90197815,70339.0,70338.0,0.001646]
[1730465746637,1.09079551,70339.0,70338.0,0.001646]
[1730465747635,5.90062251,70339.0,70338.0,0.001646]
[1730465748029,4.72279551,70339.0,70338.0,0.001646]
[1730465748231,4.61490475,70339.0,70338.0,0.001646]
[1730465748644,0.92508739,70339.0,70338.0,0.001646]
[1730465749256,0.96750021,70339.0,70338.0,0.001646]
[1730465750605,0.86250021,70339.0,70338.0,0.001646]
[1730465751030,0.87008914,70339.0,70338.0,0.001646]
[1730465751437,0.82767632,70339.0,70338.0,0.001646]
[1730465752276,0.82764582,70339.0,70338.0,0.001646]
[1730465752706,0.99046318,70339.0,70338.0,0.001646]
[1730465752918,1.032876,70339.0,70338.0,0.001646]
[1730465753213,0.142174,70336.0,70335.0,0.000824]
[1730465753439,0.41686823,70336.0,70335.0,0.000824]
[1730465753861,0.45926333,70336.0,70335.0,0.000824]
[1730465754271,0.41686823,70336.0,70335.0,0.000824]
[1730465754466,0.41686823,70336.0,70335.0,0.000524]
[1730465754670,0.59727353,70336.0,70335.0,0.000524]
[1730465755104,0.61847108,70336.0,70335.0,0.000524]
[1730465755312,0.55487843,70336.0,70335.0,0.000524]
[1730465755731,0.56887843,70336.0,70335.0,0.000524]
[1730465755948,0.63247108,70336.0,70335.0,0.000524]
[1730465756160,0.56887843,70336.0,70335.0,0.000524]
[1730465756575,0.58287843,70336.0,70335.0,0.000524]
[1730465757269,0.62524602,70336.0,70335.0,0.000524]
[1730465758348,0.58287843,70336.0,70335.0,0.000524]
[1730465758765,0.90851315,70336.0,70335.0,0.000524]
[1730465760193,0.95263557,70336.0,70335.0,0.000524]
[1730465761306,0.92463557,70336.0,70335.0,0.000524]
[1730465761515,0.95263557,70336.0,70335.0,0.000524]
[1730465762171,0.95265765,70336.0,70335.0,0.000524]
[1730465762548,0.95266183,70336.0,70335.0,0.000524]
[1730465762751,0.78984447,70336.0,70335.0,0.000524]
[1730465764684,0.95266183,70336.0,70335.0,0.000524]
[1730465765744,0.95267537,70336.0,70335.0,0.000524]
[1730465766137,5.76250237,70336.0,70335.0,0.000524]
[1730465766335,5.80224231,70336.0,70335.0,0.000524]
[1730465767910,3.07159795,70336.0,70335.0,0.000524]
[1730465768128,3.03185801,70336.0,70335.0,0.000524]
[1730465768393,0.265176,70335.0,70334.0,0.00155086]
[1730465768606,5.39605797,70335.0,70334.0,0.00155086]
[1730465768823,5.14924969,70335.0,70334.0,0.00155086]
[1730465769470,5.31210506,70335.0,70334.0,0.00155086]
[1730465769673,5.1492877,70335.0,70334.0,0.00155086]
[1730465770261,5.1632877,70335.0,70334.0,0.00155086]
[1730465770667,5.1772877,70335.0,70334.0,0.00155086]
[1730465771312,5.17729111,70335.0,70334.0,0.00155086]
[1730465771520,4.96329111,70335.0,70334.0,0.00155086]
[1730465771938,2.35429111,70335.0,70334.0,0.00155086]
[1730465772114,2.31455117,70335.0,70334.0,0.00155086]
[1730465772979,2.31455985,70335.0,70334.0,0.00155086]
[1730465773682,2.31456126,70335.0,70334.0,0.00155086]
[1730465774035,0.89856126,70335.0,70334.0,0.00155086]
[1730465774256,0.9409098,70335.0,70334.0,0.00155086]
[1730465774471,0.89856126,70335.0,70334.0,0.00155086]
[1730465774678,0.88556126,70335.0,70334.0,0.00155086]
[1730465774849,0.86756126,70335.0,70334.0,0.00155086]
[1730465775301,0.68871298,70335.0,70334.0,0.00155086]
[1730465775509,0.54771298,70335.0,70334.0,0.00155086]
[1730465775726,0.54782426,70335.0,70334.0,0.00155086]
[1730465776276,0.72570804,70335.0,70334.0,0.00155086]
[1730465777145,0.48419017,70335.0,70334.0,0.00155086]
[1730465777379,0.48419017,70335.0,70334.0,8.6e-07]
[1730465777380,6.30594793,70335.0,70334.0,8.6e-07]
[1730465777593,6.30594793,70335.0,70320.0,0.001644]
[1730465777594,0.265205,70321.0,70320.0,0.001644]
[1730465777787,0.242211,70318.0,70317.0,0.01]
[1730465777995,5.41434717,70318.0,70312.0,0.001606]
[1730465778212,5.41434717,70318.0,70302.0,0.1728]
[1730465778213,0.1,70312.0,70302.0,0.1728]
[1730465778394,0.42805836,70303.0,70302.0,0.1728]
[1730465778631,0.555107,70303.0,70302.0,0.1728]
[1730465778854,0.56843729,70303.0,70302.0,0.1728]
[1730465779065,0.61091141,70303.0,70302.0,0.1728]
[1730465779273,0.74892161,70303.0,70302.0,0.1728]
[1730465779717,0.242257,70295.0,70293.0,0.080846]
[1730465779926,0.63941133,70295.0,70293.0,0.080846]
[1730465780146,0.67574162,70295.0,70293.0,0.080846]
[1730465780358,0.66241133,70295.0,70293.0,0.080846]
[1730465780570,0.74778562,70295.0,70293.0,0.080846]
[1730465780968,0.76178562,70295.0,70293.0,0.001646]
[1730465781767,0.81881577,70295.0,70293.0,0.001646]
[1730465781967,0.98230729,70295.0,70293.0,0.001646]
[1730465782193,1.04602849,70295.0,70293.0,0.001646]
[1730465782431,1.13910659,70295.0,70293.0,0.001646]
[1730465782574,6.05511222,70295.0,70293.0,0.001646]
[1730465782775,6.09485216,70295.0,70293.0,0.001646]
[1730465783035,6.09487178,70295.0,70293.0,0.001646]
[1730465783229,6.08081766,70295.0,70294.0,1e-06]
[1730465783451,5.97467353,70295.0,70294.0,1e-06]
[1730465783589,5.84132325,70295.0,70293.0,1e-06]
[1730465783801,5.65002786,70294.0,70293.0,1e-06]
[1730465784022,5.72692786,70294.0,70293.0,1e-06]
[1730465784221,1.43813671,70294.0,70293.0,1e-06]
[1730465784543,1.76439677,70294.0,70293.0,1e-06]
[1730465784775,0.85739677,70294.0,70293.0,1e-06]
[1730465784952,0.75639677,70294.0,70293.0,1e-06]
[1730465786427,0.86250684,70294.0,70293.0,1e-06]
[1730465786641,0.87650684,70294.0,70293.0,1e-06]
[1730465786862,0.88846954,70294.0,70293.0,1e-06]
[1730465787063,5.72832669,70294.0,70293.0,1e-06]
[1730465787280,5.72832669,70294.0,70292.0,1e-06]
[1730465787281,0.265261,70293.0,70292.0,1e-06]
[1730465787515,0.265261,70293.0,70277.0,0.0751]
[1730465787516,0.142277,70285.0,70277.0,0.0751]
[1730465787752,0.62460656,70285.0,70277.0,0.0751]
[1730465787955,0.66703909,70285.0,70277.0,0.0751]
[1730465788362,0.62460109,70285.0,70277.0,0.0751]
[1730465788581,0.80551639,70285.0,70277.0,0.0751]
[1730465788794,0.76307839,70285.0,70277.0,0.0751]
[1730465788998,0.77707839,70285.0,70277.0,0.0751]
[1730465789411,0.81948595,70285.0,70275.0,0.0939]
[1730465789601,5.62931295,70285.0,70272.0,0.21589724]
[1730465789822,1.67907839,70285.0,70272.0,0.21589724]
[1730465790005,1.73548595,70285.0,70272.0,0.21589724]
[1730465790215,1.69307839,70285.0,70272.0,0.21589724]
[1730465790976,1.67982349,70285.0,70272.0,0.21589724]
[1730465791227,1.69306369,70285.0,70272.0,0.21589724]
[1730465791851,1.73599789,70285.0,70272.0,0.21589724]
[1730465792257,1.69187547,70285.0,70272.0,0.21589724]
[1730465792456,1.64894127,70285.0,70272.0,0.21589724]
[1730465792660,1.73600199,70285.0,70272.0,0.21589724]
[1730465793068,1.69187547,70285.0,70272.0,0.21589724]
[1730465793479,1.69962908,70285.0,70272.0,0.21589724]
[1730465794570,5.54762908,70285.0,70272.0,0.21589724]
[1730465795233,3.19962908,70285.0,70272.0,0.21589724]
[1730465795428,3.18162908,70285.0,70272.0,0.21589724]
[1730465795635,2.65162908,70285.0,70272.0,0.21589724]
[1730465795856,1.55062908,70285.0,70272.0,0.21589724]
[1730465796065,0.61621758,70285.0,70279.0,0.09331]
[1730465797602,0.123,70284.0,70279.0,0.09331]
[1730465797815,0.56723377,70280.0,70279.0,0.09331]
[1730465798038,0.69006195,70280.0,70279.0,0.00161]
[1730465798248,0.70329389,70280.0,70279.0,0.00161]
[1730465798986,0.58046571,70280.0,70279.0,0.00161]
[1730465800003,0.59446571,70280.0,70279.0,0.00161]
[1730465801725,0.60847894,70280.0,70279.0,0.00161]
[1730465805486,0.60850992,70280.0,70279.0,0.00161]
[1730465805692,0.59523377,70280.0,70279.0,0.00161]
[1730465805893,0.74698777,70280.0,70279.0,0.00161]
[1730465806125,0.79113644,70280.0,70279.0,0.00161]
[1730465806709,0.40579152,70274.0,70272.0,0.10061]
[1730465806921,0.55752347,70274.0,70272.0,0.00161]
[1730465807130,0.58052347,70274.0,70272.0,0.00161]
[1730465807341,0.71853367,70274.0,70272.0,0.00161]
[1730465808206,0.73253367,70274.0,70272.0,0.00161]
[1730465808627,0.71853367,70274.0,70272.0,0.00161]
[1730465808876,0.71925697,70274.0,70272.0,0.00161]
[1730465809087,0.73257337,70274.0,70272.0,0.00161]
[1730465809294,0.77680334,70274.0,70272.0,0.00161]
[1730465809962,0.79080334,70274.0,70272.0,0.00161]
[1730465810149,0.77680334,70274.0,70272.0,0.00161]
[1730465811429,0.79080334,70274.0,70272.0,0.00161]
[1730465812067,0.65279314,70274.0,70272.0,0.00161]
[1730465813811,0.62979314,70274.0,70272.0,0.00161]
[1730465814031,0.62979314,70274.0,70273.0,0.10111]
[1730465816677,0.62979314,70274.0,70273.0,0.05657421]
[1730465822143,0.61647674,70274.0,70273.0,0.05657421]
[1730465822349,0.76830105,70274.0,70273.0,0.05657421]
[1730465822684,0.36633223,70274.0,70273.0,0.05657421]
[1730465822920,0.36633223,70274.0,70273.0,0.13277421]
[1730465823522,0.36633223,70274.0,70273.0,0.13359721]
[1730465824537,0.57230161,70274.0,70273.0,0.13359721]
[1730465824750,0.67230161,70274.0,70273.0,0.13359721]
[1730465824967,0.76830105,70274.0,70273.0,0.13359721]
[1730465825662,0.94868665,70274.0,70273.0,0.077023]
[1730465825885,1.03395838,70274.0,70273.0,0.077023]
[1730465826093,1.05526161,70274.0,70273.0,0.077023]
[1730465826297,0.94867974,70274.0,70273.0,0.077023]
[1730465829020,0.78518822,70274.0,70273.0,0.077023]
[1730465829955,0.77136256,70274.0,70273.0,0.077023]
[1730465830592,0.78536256,70274.0,70273.0,0.077023]
[1730465831015,0.80670297,70274.0,70273.0,0.077023]
[1730465831220,0.80670297,70274.0,70273.0,0.04496081]
[1730465831440,0.80670297,70274.0,70273.0,0.000823]
[1730465831877,0.78536256,70274.0,70273.0,0.000823]
[1730465832076,0.64688526,70274.0,70273.0,0.000823]
[1730465832504,0.52388526,70274.0,70273.0,0.000823]
[1730465832718,0.24313001,70274.0,70273.0,0.094623]
[1730465832951,0.33584608,70274.0,70273.0,0.094623]
[1730465833184,0.47814608,70274.0,70273.0,0.10640547]
[1730465833381,0.43391611,70274.0,70273.0,0.094623]
[1730465833566,0.44791611,70274.0,70273.0,0.094623]
[1730465833716,0.41991611,70274.0,70273.0,0.094623]
[1730465834127,0.44791611,70274.0,70273.0,0.169723]
[1730465834321,0.44793321,70274.0,70273.0,0.169723]
[1730465834957,0.34121408,70274.0,70273.0,0.169723]
[1730465836260,0.19891408,70274.0,70273.0,0.169723]
[1730465836669,0.20056008,70274.0,70273.0,0.18190355]
[1730465837579,0.34286008,70274.0,70273.0,0.18190355]
[1730465838149,0.18528262,70274.0,70273.0,0.18190355]
[1730465838362,0.04298262,70274.0,70273.0,0.18190355]
[1730465839190,0.18528262,70274.0,70273.0,0.18190355]
[1730465839550,0.04298262,70274.0,70273.0,0.18190355]
[1730465839753,0.18528262,70274.0,70273.0,0.18190355]
[1730465840083,0.24928791,70274.0,70273.0,0.18190355]
[1730465840283,0.24928403,70274.0,70273.0,0.18190355]
[1730465840882,0.10698403,70274.0,70273.0,0.18190355]
[1730465841084,0.12832467,70274.0,70273.0,0.18190355]
[1730465841300,0.20048608,70274.0,70273.0,0.18190355]
[1730465841726,0.48124133,70274.0,70273.0,0.18190355]
[1730465841917,0.32373787,70274.0,70273.0,0.169723]
[1730465842364,0.44038436,70274.0,70273.0,0.169723]
[1730465842521,0.38773001,70274.0,70273.0,0.169723]
[1730465842739,0.10697476,70274.0,70273.0,0.169723]
[1730465842951,0.04298262,70274.0,70273.0,0.32420555]
[1730465843694,0.04298262,70274.0,70273.0,0.32865748]
[1730465843899,0.01498262,70274.0,70273.0,0.32865748]
[1730465844037,0.01498262,70274.0,70273.0,0.43594848]
[1730465844258,0.01598262,70274.0,70273.0,0.32865748]
[1730465844480,0.01598262,70274.0,70273.0,0.49207164]
[1730465846108,0.01498262,70274.0,70273.0,0.49207164]
[1730465846325,0.01598262,70274.0,70273.0,0.49307164]
[1730465846738,0.01498262,70274.0,70273.0,0.49207164]
[1730465847004,0.001646,70279.0,70273.0,0.49022489]
[1730465847198,0.06563814,70292.0,70273.0,0.49022489]
[1730465847199,0.21428724,70289.0,70288.0,0.314771]
[1730465847666,0.21428724,70289.0,70288.0,0.32675599]
[1730465847876,0.001646,70292.0,70291.0,0.314765]
[1730465848078,0.001646,70292.0,70291.0,0.47817916]
[1730465848285,0.001646,70292.0,70291.0,0.4901487]
[1730465850058,0.002646,70292.0,70291.0,0.4951487]
[1730465850286,0.001646,70292.0,70291.0,0.4901487]
[1730465850616,0.002646,70292.0,70291.0,0.50059929]
[1730465850827,0.002646,70292.0,70291.0,0.4971487]
[1730465850828,0.003646,70292.0,70291.0,0.4971487]
[1730465851219,0.002646,70292.0,70291.0,0.4961487]
[1730465851835,0.002646,70292.0,70291.0,0.3538837]
[1730465852296,0.002646,70292.0,70291.0,0.4961487]
[1730465852898,0.003646,70292.0,70291.0,0.4971487]
[1730465861304,0.003646,70292.0,70291.0,0.33373454]
[1730465862149,0.003646,70292.0,70291.0,0.19146954]
[1730465863675,0.003646,70292.0,70291.0,0.33373454]
[1730465864410,0.003646,70292.0,70291.0,0.33818529]
[1730465867272,0.003646,70292.0,70291.0,0.47664054]
[1730465868558,0.003646,70292.0,70291.0,0.33818529]
[1730465869841,0.003646,70292.0,70291.0,0.33373454]
[1730465870051,0.003646,70292.0,70291.0,0.33818507]
[1730465871773,0.003646,70292.0,70291.0,0.47664032]
[1730465873272,0.01863429,70307.0,70306.0,0.16341416]
[1730465873486,0.01863429,70307.0,70306.0,0.30564916]
[1730465873757,0.01863429,70307.0,70306.0,0.3218925]
[1730465873960,0.1,70315.0,70307.0,0.142232]
[1730465874166,0.1,70315.0,70308.0,0.00445028]
[1730465874167,0.23845525,70315.0,70308.0,0.00445028]
[1730465874367,0.23845525,70315.0,70308.0,0.01177002]
[1730465874368,0.38067225,70315.0,70308.0,0.01177002]
[1730465874593,0.142229,70309.0,70308.0,0.01177002]
[1730465874798,0.142229,70309.0,70308.0,0.00445028]
[1730465875037,0.284453,70311.0,70300.0,0.142247]
[1730465875237,0.006,70307.0,70301.0,0.00445033]
[1730465875495,0.006,70307.0,70302.0,0.00445033]
[1730465875698,0.006,70307.0,70301.0,0.0118016]
[1730465875699,0.008,70307.0,70306.0,0.001]
[1730465875905,0.008,70307.0,70306.0,0.00545033]
[1730465876115,0.007,70309.0,70306.0,0.00445033]
[1730465876292,0.007,70309.0,70307.0,0.00445033]
[1730465876536,0.28068125,70311.0,70308.0,0.00445033]
[1730465876537,0.002,70311.0,70308.0,0.00445033]
[1730465876746,0.1,70315.0,70309.0,0.00445033]
[1730465876922,0.23845525,70315.0,70310.0,0.00445033]
[1730465877123,0.23845525,70315.0,70311.0,0.00445027]
[1730465877540,0.38067225,70315.0,70310.0,0.01175704]
[1730465877740,0.23845525,70315.0,70312.0,0.01174714]
[1730465878147,0.13845525,70315.0,70312.0,0.01174714]
[1730465878352,0.13845525,70315.0,70313.0,0.01174219]
[1730465878641,0.007,70311.0,70307.0,0.00284439]
[1730465878870,0.007,70311.0,70308.0,0.00545026]
[1730465878871,0.017,70311.0,70308.0,0.00545026]
[1730465879101,0.01,70311.0,70309.0,0.00445026]
[1730465879270,0.01,70311.0,70310.0,0.00445026]
[1730465879462,0.01,70311.0,70310.0,0.0162073]
[1730465879693,0.142211,70318.0,70312.0,0.001]
[1730465879827,0.142211,70318.0,70313.0,0.00445026]
[1730465879828,0.13845525,70318.0,70313.0,0.00445026]
[1730465880028,0.6620804,70329.0,70314.0,0.00445026]
[1730465880029,0.49866624,70329.0,70314.0,0.00445026]
[1730465880241,0.49866624,70329.0,70312.0,0.142222]
[1730465880242,0.35649324,70321.0,70312.0,0.142222]
[1730465880444,0.49494849,70321.0,70315.0,0.01173042]
[1730465880682,0.49494849,70321.0,70312.0,0.142222]
[1730465880840,0.142208,70320.0,70316.0,0.01172498]
[1730465881061,0.142208,70320.0,70311.0,0.142224]
[1730465881274,0.28066125,70321.0,70317.0,0.01172003]
[1730465881472,0.142207,70320.0,70310.0,0.33721416]
[1730465881749,0.142207,70320.0,70311.0,0.00444992]
[1730465881996,0.142207,70320.0,70312.0,0.00444992]
[1730465882197,0.142209,70319.0,70313.0,0.00444992]
[1730465882346,0.35274249,70321.0,70314.0,0.00444992]
[1730465882347,0.01333223,70318.0,70314.0,0.00444992]
[1730465882556,0.01333223,70317.0,70315.0,0.00444992]
[1730465882868,0.01332983,70316.0,70315.0,0.01172304]
[1730465883087,0.15554483,70316.0,70315.0,0.01172304]
[1730465883292,0.12104266,70316.0,70306.0,0.16341416]
[1730465883500,0.01333002,70315.0,70308.0,0.14223]
[1730465883813,0.01333002,70314.0,70312.0,0.002]
[1730465884016,0.142214,70317.0,70313.0,0.00444988]
[1730465884175,0.01732821,70316.0,70314.0,0.00444988]
[1730465884361,0.01332821,70315.0,70312.0,0.002]
[1730465884563,0.01332821,70314.0,70313.0,0.00444988]
[1730465884959,0.01332821,70314.0,70313.0,0.31517088]
[1730465885219,0.01332821,70314.0,70313.0,0.45362613]
[1730465885485,0.21428724,70327.0,70313.0,0.45362613]
[1730465885486,0.21428724,70327.0,70326.0,0.47240816]
[1730465885669,0.21428724,70327.0,70326.0,0.47685804]
[1730465886174,0.001646,70335.0,70328.0,0.142189]
[1730465886313,0.001646,70335.0,70327.0,0.284385]
[1730465886314,0.001646,70335.0,70329.0,0.14663688]
[1730465886526,0.001646,70335.0,70330.0,0.16786404]
[1730465886759,0.001646,70335.0,70334.0,0.47669216]
[1730465886988,0.001646,70343.0,70334.0,0.47669216]
[1730465886989,0.001646,70343.0,70342.0,0.142162]
[1730465887388,0.001646,70343.0,70342.0,0.32440218]
[1730465887610,0.001646,70343.0,70342.0,0.32155936]
[1730465889166,0.002646,70343.0,70342.0,0.32755936]
[1730465889372,0.003646,70343.0,70342.0,0.33355936]
[1730465890222,0.003646,70343.0,70342.0,0.54771461]
[1730465890425,0.003646,70343.0,70342.0,0.64311461]
[1730465890693,0.003646,70343.0,70342.0,0.80652877]
[1730465890937,0.003646,70343.0,70342.0,0.64311461]
[1730465891345,0.003646,70343.0,70342.0,0.74311461]
[1730465892206,0.003646,70343.0,70342.0,0.57970045]
[1730465892412,0.003646,70343.0,70342.0,0.4412452]
[1730465893319,0.003646,70343.0,70342.0,0.02353538]
[1730465893757,0.003646,70343.0,70342.0,0.012]
[1730465894182,0.003646,70343.0,70342.0,0.02334136]
[1730465894848,0.003646,70343.0,70342.0,0.012]
[1730465895049,0.145806,70343.0,70342.0,0.012]
[1730465895275,0.003646,70343.0,70342.0,0.012]
[1730465895515,0.145806,70343.0,70342.0,0.012]
[1730465896166,0.28426125,70343.0,70342.0,0.012]
[1730465896601,0.14010125,70343.0,70337.0,0.00213243]
[1730465896829,0.142169,70339.0,70337.0,0.00213243]
[1730465897009,0.142169,70339.0,70338.0,0.01137877]
[1730465897250,0.30558316,70339.0,70338.0,0.01137877]
[1730465897664,0.30558316,70339.0,70337.0,0.00213243]
[1730465897665,0.16341416,70339.0,70337.0,0.00213243]
[1730465897903,0.14217,70338.0,70337.0,0.00213243]
[1730465898361,0.142177,70335.0,70328.0,0.07820841]
[1730465898565,0.284345,70337.0,70328.0,0.07820841]
[1730465898566,0.142172,70337.0,70328.0,0.22039841]
[1730465899267,0.005,70339.0,70338.0,0.001]
[1730465899510,0.008646,70343.0,70334.0,0.284357]
[1730465899511,0.22293324,70343.0,70334.0,0.284357]
[1730465899733,0.22293324,70343.0,70337.0,0.16341416]
[1730465899734,0.008646,70343.0,70337.0,0.16341416]
[1730465899945,0.001646,70343.0,70342.0,0.142162]
[1730465900155,0.001646,70343.0,70342.0,0.14500479]
[1730465900797,0.001646,70343.0,70342.0,0.142162]
[1730465901181,0.001646,70343.0,70342.0,0.219562]
[1730465901418,0.001646,70343.0,70342.0,0.2309966]
[1730465902010,0.003646,70343.0,70342.0,0.2309966]
[1730465902438,0.001646,70343.0,70342.0,0.2309966]
[1730465902637,0.002646,70343.0,70342.0,0.2309966]
[1730465902838,0.008646,70343.0,70342.0,0.2309966]
[1730465903395,0.010646,70343.0,70342.0,0.2319966]
[1730465903611,0.001646,70343.0,70342.0,0.39441076]
[1730465903814,0.002646,70343.0,70342.0,0.40341076]
[1730465904025,0.002646,70343.0,70342.0,0.2399966]
[1730465904276,0.002646,70343.0,70342.0,0.23783938]
[1730465904482,0.002646,70343.0,70342.0,0.24283938]
[1730465904684,0.002646,70343.0,70342.0,0.2399966]
[1730465905227,0.001646,70343.0,70342.0,0.2359966]
[1730465905506,0.002646,70343.0,70342.0,0.2399966]
[1730465905708,0.002646,70343.0,70342.0,0.2349966]
[1730465905923,0.001646,70343.0,70342.0,0.23544395]
[1730465906154,0.001646,70343.0,70342.0,0.0918346]
[1730465906374,0.001646,70343.0,70342.0,0.08852867]
[1730465906810,0.001646,70343.0,70342.0,0.23369067]
[1730465907027,0.001646,70343.0,70342.0,0.22669067]
[1730465907269,0.001646,70343.0,70342.0,0.22969067]
[1730465907724,0.001646,70343.0,70342.0,0.22669067]
[1730465907940,0.001646,70343.0,70342.0,0.62520743]
[1730465908381,0.001646,70343.0,70342.0,0.62920743]
[1730465909026,0.001646,70343.0,70342.0,0.62620743]
[1730465909287,0.001646,70343.0,70342.0,0.62920743]
[1730465909745,0.001646,70343.0,70342.0,0.62520743]
[1730465910209,0.003646,70343.0,70342.0,0.63520743]
[1730465911383,0.003646,70343.0,70342.0,0.64232233]
[1730465914418,0.001612,70345.0,70344.0,0.142158]
[1730465914645,0.001612,70345.0,70344.0,0.5654755]
[1730465914874,0.001612,70345.0,70344.0,0.57432942]
[1730465915351,0.00161,70350.0,70349.0,0.47886216]
[1730465915574,0.00161,70350.0,70349.0,0.72887966]
[1730465915802,0.00161,70350.0,70349.0,0.73771503]
[1730465916703,0.00161,70350.0,70349.0,0.74171503]
[1730465916940,0.00261,70350.0,70349.0,0.91012919]
[1730465917169,0.00261,70350.0,70349.0,0.90512919]
[1730465917170,0.00161,70350.0,70349.0,0.90512919]
[1730465917434,0.00161,70350.0,70349.0,0.92812919]
[1730465918406,0.00161,70350.0,70349.0,0.92412919]
[1730465918632,0.00261,70350.0,70349.0,0.91856694]
[1730465918858,0.00361,70350.0,70349.0,0.93512478]
[1730465919085,0.00161,70350.0,70349.0,0.92412478]
[1730465919307,0.00261,70350.0,70349.0,0.92912478]
[1730465919550,0.00361,70350.0,70349.0,0.93012478]
[1730465919776,0.00261,70350.0,70349.0,0.93012478]
[1730465920006,0.00361,70350.0,70349.0,0.93512478]
[1730465920246,0.00361,70350.0,70349.0,0.93012478]
[1730465920464,0.00261,70350.0,70349.0,0.92412478]
[1730465920681,0.00361,70350.0,70349.0,0.92912478]
[1730465921834,0.00361,70350.0,70349.0,0.93673668]
[1730465922060,0.00461,70350.0,70349.0,0.94273668]
[1730465922289,0.00261,70350.0,70349.0,0.93773676]
[1730465922503,0.00161,70350.0,70349.0,0.93173676]
[1730465922713,0.00261,70350.0,70349.0,0.93673676]
[1730465922940,0.00361,70350.0,70349.0,0.94273676]
[1730465924265,0.00361,70350.0,70349.0,0.91973676]
[1730465924490,0.00361,70350.0,70349.0,0.7487107]
[1730465925209,0.00361,70350.0,70349.0,0.5754107]
[1730465925421,0.00361,70350.0,70349.0,0.5694107]
[1730465925422,0.00261,70350.0,70349.0,0.5694107]
[1730465925630,0.00161,70350.0,70349.0,0.5644107]
[1730465925845,0.00161,70350.0,70349.0,0.33695545]
[1730465925846,0.00261,70350.0,70349.0,0.33695545]
[1730465926055,0.00361,70350.0,70349.0,0.33695545]
[1730465926262,0.00261,70350.0,70349.0,0.32595545]
[1730465926465,0.00261,70350.0,70349.0,0.33095545]
[1730465926466,0.00361,70350.0,70349.0,0.33095545]